bitfinex/quotes_ETHUSD_20240924
["timestamp","ask_amount","ask_price","bid_price","bid_amount"]
[1727193169394,3.81874,2618.7,2617.8,10.37]
[1727193169395,2.84984689,2618.4,2617.8,7.37]
[1727193169726,0.7888,2618.5,2618.0,3.81957]
[1727193169881,0.7888,2618.5,2618.2,7.63882]
[1727193170078,4.60749,2618.7,2618.2,7.63882]
[1727193170330,1.110869,2618.6,2618.2,3.81941]
[1727193170626,1.110869,2618.6,2618.2,3.81932]
[1727193170925,0.7888,2618.7,2618.1,0.7609]
[1727193171088,7.29,2618.8,2618.4,7.63808]
[1727193171291,3.81841,2618.9,2618.4,3.81904]
[1727193172381,7.6369,2618.9,2618.4,3.81904]
[1727193172711,3.81841,2618.9,2618.4,3.81904]
[1727193172923,4.960951,2618.9,2618.4,3.81904]
[1727193173915,8.779421,2618.9,2618.4,3.81904]
[1727193174118,4.960951,2618.9,2618.4,3.81904]
[1727193174523,8.779471,2618.9,2618.4,3.81904]
[1727193174922,4.960951,2618.9,2618.4,3.81904]
[1727193175099,0.5749751,2618.8,2618.4,3.81904]
[1727193175497,0.5749751,2618.8,2618.2,3.81931]
[1727193175819,4.3936051,2618.8,2618.3,3.81918]
[1727193177842,4.3936051,2618.8,2618.2,3.81931]
[1727193177843,0.5749751,2618.8,2618.4,3.81911]
[1727193180897,4.3935151,2618.8,2618.4,3.81911]
[1727193181260,0.7888,2619.0,2618.6,3.81873]
[1727193181538,0.7888,2619.0,2618.7,3.81866]
[1727193181701,4.58888,2619.4,2619.0,3.81817]
[1727193181903,0.7712,2619.4,2619.2,3.81794]
[1727193182136,0.0381257,2619.5,2619.2,3.81793]
[1727193182310,0.0381257,2619.5,2619.4,3.81766]
[1727193182835,0.0381257,2619.5,2619.3,3.89413861]
[1727193183204,0.0381257,2619.5,2619.2,3.81787]
[1727193183541,0.0381257,2619.5,2619.3,3.89402862]
[1727193183847,0.0381257,2619.5,2619.3,0.07634862]
[1727193184061,0.0381257,2619.5,2619.4,0.83863879]
[1727193184222,0.0381257,2619.5,2619.4,7.65629243]
[1727193184543,0.0381257,2619.5,2619.4,14.83827692]
[1727193184754,0.0381257,2620.3,2620.2,4.5788]
[1727193184906,0.0381257,2620.3,2620.2,4.65511918]
[1727193185108,0.0381257,2620.3,2620.2,7.50496142]
[1727193185346,0.7712,2621.3,2620.7,3.81566]
[1727193185347,0.0262514,2621.1,2620.7,3.81566]
[1727193185886,0.0262514,2621.1,2620.9,3.81546]
[1727193186238,0.0262514,2621.1,2620.9,3.81533]
[1727193186608,0.0262514,2621.1,2620.8,3.81562]
[1727193188015,0.0262514,2621.1,2620.7,0.7623]
[1727193188413,0.0262514,2621.1,2620.5,3.816]
[1727193188654,0.0262514,2621.1,2620.6,3.81581]
[1727193188841,0.0262514,2621.1,2620.5,3.816]
[1727193189313,3.8414714,2621.1,2620.5,3.816]
[1727193189933,0.0262514,2621.1,2620.5,3.816]
[1727193190236,0.0262514,2621.1,2620.7,3.81565]
[1727193190839,0.0262514,2621.1,2620.5,3.81599]
[1727193191151,0.0262514,2621.1,2620.7,3.8157]
[1727193191341,0.0262514,2621.1,2620.5,3.81592]
[1727193191782,3.8415014,2621.1,2620.5,3.81592]
[1727193192075,3.8415014,2621.1,2620.6,3.81587]
[1727193192293,0.0262514,2621.1,2620.7,3.81576]
[1727193192452,0.0262514,2621.1,2620.9,3.81547]
[1727193193482,0.0262514,2621.1,2620.8,3.81562]
[1727193193982,0.0262514,2621.1,2620.5,3.81605]
[1727193194142,3.8415214,2621.1,2620.6,3.81584]
[1727193194335,7.81911712,2621.1,2620.4,3.81612]
[1727193194536,7.81911712,2621.1,2620.3,3.81628]
[1727193194537,6.66541689,2620.9,2620.3,3.81633]
[1727193194777,0.7712,2621.0,2620.4,3.81621]
[1727193195078,0.7712,2621.0,2620.4,3.81615]
[1727193195451,4.58657,2621.0,2620.4,7.63223]
[1727193195652,4.58657,2621.0,2620.4,7.63224]
[1727193196074,0.7712,2621.0,2620.6,3.81588]
[1727193196275,0.7712,2621.0,2620.5,3.81603]
[1727193196661,0.7712,2621.0,2620.6,3.81588]
[1727193198287,0.7712,2621.0,2620.6,7.63168]
[1727193198493,0.7712,2621.0,2620.7,3.81565]
[1727193198802,0.7712,2621.0,2620.6,3.81584]
[1727193198803,0.0262514,2621.1,2620.8,3.81553]
[1727193199865,0.0262514,2621.1,2620.8,7.63104]
[1727193200063,0.0262514,2621.1,2620.8,3.81551]
[1727193202984,0.0262514,2621.1,2620.7,3.81574]
[1727193203958,3.8415114,2621.1,2620.6,3.81581]
[1727193205067,3.8154,2621.0,2620.5,3.81605]
[1727193205296,3.8415114,2621.1,2620.6,3.8159]
[1727193205462,2.84984689,2621.0,2620.6,3.8159]
[1727193205657,0.74625583,2621.0,2620.3,0.7623]
[1727193205907,7.43673689,2620.8,2620.3,3.81626]
[1727193206218,4.58689,2620.8,2620.3,3.81626]
[1727193206493,3.81577,2620.7,2620.2,7.63277]
[1727193206714,3.81577,2620.7,2620.2,3.81637]
[1727193206864,0.7712,2620.8,2620.4,3.81619]
[1727193207058,0.7712,2620.8,2620.4,3.81612]
[1727193207361,0.7712,2620.8,2620.6,3.81591]
[1727193207704,4.58654,2621.0,2620.6,3.81591]
[1727193208057,0.7712,2621.0,2620.7,3.81575]
[1727193208573,0.7712,2621.0,2620.6,3.81591]
[1727193208903,0.7712,2621.0,2620.6,7.63175]
[1727193209102,0.7712,2621.0,2620.6,3.81584]
[1727193209795,0.7712,2621.0,2620.7,3.81576]
[1727193210296,0.7712,2621.0,2620.6,3.81584]
[1727193210600,0.7712,2621.0,2620.6,3.81591]
[1727193210765,0.7712,2621.0,2620.6,3.8158]
[1727193211464,0.7712,2621.0,2620.6,7.63159]
[1727193211665,0.7712,2621.0,2620.7,3.81569]
[1727193212395,4.36729572,2621.0,2620.2,0.8041]
[1727193212559,0.7712,2621.0,2620.6,3.81589]
[1727193212760,0.7712,2621.0,2620.7,3.81569]
[1727193213062,0.0262514,2621.1,2620.9,3.81546]
[1727193213496,0.0262514,2621.1,2620.8,4.61972]
[1727193213657,0.0262514,2621.1,2620.9,3.81546]
[1727193214409,0.0262514,2621.1,2620.9,3.81533]
[1727193214562,0.0262514,2621.1,2620.9,3.81547]
[1727193215410,0.0262514,2621.1,2620.9,3.8154]
[1727193215577,0.0262514,2621.1,2621.0,3.81533]
[1727193215768,3.68349829,2621.1,2620.8,3.81562]
[1727193216006,0.8336514,2621.1,2620.8,3.81562]
[1727193216212,0.8336514,2621.1,2620.8,7.63116]
[1727193216407,0.8336514,2621.1,2620.8,3.81554]
[1727193217323,0.8336514,2621.1,2620.8,3.8155]
[1727193217505,0.8336514,2621.1,2620.6,3.8158]
[1727193217959,0.0262514,2621.1,2620.5,3.65394689]
[1727193218106,0.0262514,2621.1,2621.0,4.61943]
[1727193219025,0.0262514,2621.1,2621.0,4.69572088]
[1727193219241,0.0262514,2621.1,2621.0,4.61943]
[1727193220711,0.0262514,2621.1,2621.0,3.81533]
[1727193221324,0.0262514,2621.1,2621.0,10.5455687]
[1727193221676,0.0381257,2621.9,2621.8,7.61827]
[1727193221955,0.0381257,2621.9,2621.8,4.61827]
[1727193222151,0.0381257,2621.9,2621.6,4.61842]
[1727193222350,0.0381257,2621.9,2621.5,3.8145]
[1727193222512,0.0381257,2621.9,2621.4,0.8041]
[1727193222513,0.0381257,2621.9,2621.3,7.62962]
[1727193222710,0.0381257,2621.9,2621.4,3.81461]
[1727193223121,0.0381257,2621.9,2621.5,3.81458]
[1727193223770,0.0381257,2621.9,2621.8,3.81417]
[1727193225174,0.8455257,2621.9,2621.8,3.81417]
[1727193225629,0.8455257,2621.9,2621.7,3.81427]
[1727193225829,0.8455257,2621.9,2621.8,3.81417]
[1727193226053,0.8455257,2621.9,2621.7,3.81427]
[1727193226532,0.8455257,2621.9,2621.7,3.81421]
[1727193226840,0.0381257,2621.9,2621.8,3.81417]
[1727193227569,0.0381257,2621.9,2621.8,5.15977001]
[1727193228133,0.7978257,2622.6,2622.4,3.81317]
[1727193228742,0.7978257,2622.6,2622.5,3.81315]
[1727193229133,0.7597,2622.6,2622.0,3.81382]
[1727193229371,0.7926086,2622.6,2622.4,3.81321]
[1727193229575,0.7926086,2622.6,2622.2,3.81352]
[1727193229791,2.84984689,2622.5,2622.1,3.81366]
[1727193229938,1.15685415,2622.6,2621.8,0.7672]
[1727193230243,0.7926086,2622.6,2622.2,3.81351]
[1727193230582,0.7926086,2622.6,2622.2,3.81349]
[1727193230732,0.7926086,2622.6,2622.2,7.62701]
[1727193231132,2.84984689,2622.5,2622.0,3.81378]
[1727193231357,0.7926086,2622.6,2622.2,3.81358]
[1727193231548,0.7926086,2622.6,2622.2,3.81348]
[1727193232243,1.53814315,2622.6,2622.2,3.81348]
[1727193232444,0.7926086,2622.6,2621.8,0.7672]
[1727193232659,3.81316,2622.5,2622.1,3.81373]
[1727193232958,0.7597,2622.4,2621.9,3.81388]
[1727193234034,0.7597,2622.4,2622.1,3.81366]
[1727193234239,0.7597,2622.4,2622.0,3.81387]
[1727193234678,0.7597,2622.4,2621.8,3.81415]
[1727193234679,3.81367,2622.2,2621.8,3.81415]
[1727193234890,3.81367,2622.2,2621.7,3.81422]
[1727193235096,0.7597,2622.1,2621.7,3.81422]
[1727193235952,0.7597,2622.1,2621.8,3.81416]
[1727193236261,0.7597,2622.1,2620.9,16.90636912]
[1727193236262,4.57406,2621.7,2621.1,11.18507]
[1727193236463,7.42390689,2621.7,2621.2,3.81496]
[1727193237076,7.42390689,2621.7,2621.0,3.8153]
[1727193237077,3.81464,2621.5,2621.0,3.8153]
[1727193237263,0.7597,2621.4,2620.8,8.20947001]
[1727193237589,0.7597,2621.4,2621.0,3.81526]
[1727193237750,0.7597,2621.4,2621.0,4.39366001]
[1727193237954,0.7597,2621.4,2621.1,0.57840001]
[1727193238694,0.7597,2621.4,2621.0,3.0]
[1727193238903,0.7597,2621.4,2621.2,3.81494]
[1727193239398,0.7597,2621.4,2621.0,3.81525]
[1727193241107,0.7597,2621.4,2621.0,7.6305]
[1727193241272,0.7597,2621.4,2621.2,3.81503]
[1727193241466,0.7597,2621.4,2621.0,8.20890001]
[1727193241869,0.7597,2621.4,2621.0,8.20889001]
[1727193242206,0.7597,2621.4,2621.0,4.39364001]
[1727193242420,0.7553,2621.7,2620.7,13.98704689]
[1727193242706,0.7553,2621.7,2621.3,3.81476]
[1727193242860,0.7553,2621.7,2621.1,8.20857001]
[1727193243201,0.7553,2621.7,2621.3,3.81481]
[1727193243368,0.7553,2621.7,2621.4,3.81467]
[1727193243818,0.7553,2621.7,2621.4,3.81474]
[1727193243964,0.7553,2621.7,2621.3,3.81481]
[1727193244298,0.7553,2621.7,2621.4,3.81474]
[1727193244778,0.7553,2621.7,2621.5,3.8146]
[1727193245303,0.7553,2621.7,2621.3,3.81481]
[1727193245462,0.7553,2621.7,2621.4,3.81473]
[1727193245886,0.7553,2621.7,2621.5,3.81458]
[1727193246294,0.7553,2621.7,2621.5,3.81448]
[1727193246796,0.7553,2621.7,2621.5,7.62899]
[1727193246965,0.7553,2621.7,2621.6,3.81446]
[1727193247467,0.7553,2622.0,2621.6,3.81446]
[1727193247977,0.7553,2622.0,2621.6,3.89074085]
[1727193248504,0.7553,2622.0,2621.7,3.81423]
[1727193248707,0.7553,2622.0,2621.8,3.81417]
[1727193249000,13.95309689,2622.5,2621.9,3.81402]
[1727193249001,0.7553,2622.3,2621.9,3.81402]
[1727193249162,4.56809,2622.8,2622.2,3.81351]
[1727193249361,0.7553,2622.5,2621.9,4.59403]
[1727193249562,4.56854,2622.5,2622.0,3.81379]
[1727193249803,0.7553,2622.5,2622.0,3.81379]
[1727193250028,0.7553,2622.5,2622.2,3.81356]
[1727193250333,0.7553,2622.5,2622.1,3.8137]
[1727193251441,0.7553,2622.5,2622.1,3.81367]
[1727193252519,0.7553,2622.5,2622.1,3.88993566]
[1727193252918,0.7553,2622.5,2622.1,3.81367]
[1727193255132,3.81349,2622.3,2621.8,3.81405]
[1727193255335,0.7553,2622.2,2621.7,3.81419]
[1727193255828,0.7553,2622.2,2621.9,3.81401]
[1727193256030,0.7553,2622.2,2621.9,7.62794]
[1727193256253,0.7553,2622.5,2622.1,3.81362]
[1727193256543,0.7553,2622.5,2622.2,3.81357]
[1727193256946,0.0329086,2622.6,2622.3,0.65465969]
[1727193257237,0.0329086,2622.6,2622.5,3.81315]
[1727193258549,0.0329086,2622.6,2622.5,3.88940447]
[1727193258755,0.0329086,2622.6,2622.5,4.46780448]
[1727193259055,0.0329086,2622.6,2622.5,4.66950447]
[1727193259412,0.0329086,2622.6,2622.5,3.81315]
[1727193261247,0.0329086,2622.6,2622.5,7.59325]
[1727193261484,0.0329086,2622.6,2622.5,11.59054123]
[1727193261694,0.0389318,2623.4,2623.3,3.81199]
[1727193263440,0.0389318,2623.4,2623.2,3.81204]
[1727193263645,0.7942318,2623.4,2623.0,3.81232]
[1727193263990,0.7942318,2623.4,2623.0,3.81235]
[1727193264353,0.7942318,2623.4,2622.8,3.8126]
[1727193264556,2.84984689,2623.2,2622.6,11.18293]
[1727193264763,0.7553,2623.3,2622.7,3.81285]
[1727193264764,4.56738,2623.3,2622.7,3.81285]
[1727193265551,3.81215,2623.2,2622.7,3.81285]
[1727193265888,3.81215,2623.2,2622.7,3.81282]
[1727193266058,3.81215,2623.2,2622.3,3.7801]
[1727193266396,0.7553,2623.0,2622.6,3.813]
[1727193266697,0.7553,2623.0,2622.5,3.0]
[1727193266698,4.56781,2623.0,2622.5,3.0]
[1727193266868,4.56781,2623.0,2622.2,4.39190001]
[1727193266869,3.81287,2622.7,2622.2,4.39190001]
[1727193267073,0.7553,2622.8,2622.1,1.35850001]
[1727193267261,4.56806,2622.8,2622.2,7.62696]
[1727193267601,0.7553,2622.8,2622.4,3.81327]
[1727193267999,0.7553,2622.8,2622.5,3.81315]
[1727193268166,0.7553,2622.8,2622.4,4.39167001]
[1727193268796,0.7553,2622.8,2622.4,3.81328]
[1727193269405,4.56808,2622.8,2622.3,3.8134]
[1727193269600,4.44321489,2622.8,2622.1,3.81363]
[1727193269800,3.81307,2622.6,2622.0,6.81383]
[1727193270041,0.7553,2622.7,2622.0,6.81383]
[1727193270253,4.56816,2622.7,2622.2,3.81358]
[1727193270534,0.7553,2622.7,2622.2,3.81358]
[1727193270838,4.56823,2622.7,2622.2,0.57840001]
[1727193271003,4.56823,2622.7,2622.2,4.39195001]
[1727193271204,4.56823,2622.7,2622.2,4.46821226]
[1727193271513,0.7553,2622.7,2622.5,3.81308]
[1727193272624,0.7553,2622.7,2622.3,3.81335]
[1727193273213,0.7553,2622.7,2622.3,3.81337]
[1727193273851,3.81309,2622.6,2622.1,7.62724]
[1727193274003,4.56829,2622.7,2622.1,3.81362]
[1727193274340,0.8277,2622.5,2622.1,3.81362]
[1727193274515,0.8277,2622.5,2622.1,7.62726]
[1727193275434,0.8277,2622.5,2622.1,3.81362]
[1727193276243,4.64086,2622.5,2622.0,3.8138]
[1727193277557,4.64086,2622.5,2622.1,3.81372]
[1727193278240,0.8277,2622.5,2622.1,3.81372]
[1727193278668,0.8277,2622.5,2622.1,3.81365]
[1727193279276,0.8277,2622.5,2622.1,3.81364]
[1727193279637,0.8277,2622.5,2622.2,3.8135]
[1727193280079,0.8277,2622.5,2622.1,3.81364]
[1727193280442,0.8277,2622.5,2622.1,7.6273]
[1727193280773,4.64087,2622.5,2622.1,3.81364]
[1727193281178,0.8277,2622.5,2622.1,3.81364]
[1727193281543,4.64086,2622.5,2622.1,3.81364]
[1727193282368,8.45412,2622.5,2621.9,10.62783]
[1727193282670,0.8277,2622.5,2622.2,3.81356]
[1727193283447,4.64086,2622.5,2622.0,7.62766]
[1727193283994,0.8277,2622.7,2622.3,2.84984689]
[1727193284311,0.8277,2622.7,2622.2,3.81355]
[1727193284312,4.64057,2622.7,2622.2,3.8135]
[1727193285118,4.64057,2622.7,2622.1,3.81373]
[1727193285119,3.81307,2622.6,2622.1,3.81373]
[1727193285576,0.8277,2622.5,2622.2,3.81358]
[1727193286603,4.64085,2622.5,2622.1,3.81373]
[1727193286897,0.8277,2622.5,2622.2,3.81358]
[1727193287276,0.8277,2622.5,2622.2,7.6271]
[1727193287595,0.8277,2622.5,2622.2,3.81351]
[1727193287800,0.8277,2622.5,2622.2,3.8135]
[1727193288974,0.8277,2622.5,2622.1,3.81359]
[1727193289276,0.8277,2622.5,2622.2,3.81352]
[1727193290809,3.8133,2622.4,2621.8,7.39246001]
[1727193291012,0.785,2622.2,2621.6,3.81437]
[1727193291164,0.785,2622.0,2621.6,7.62876]
[1727193291368,0.785,2622.0,2621.3,0.8123]
[1727193291599,0.785,2622.0,2621.7,3.81423]
[1727193291811,0.785,2622.0,2621.7,7.62845]
[1727193292227,0.785,2622.0,2621.7,3.81422]
[1727193292420,0.785,2622.0,2621.8,3.81408]
[1727193292939,0.785,2622.0,2621.7,3.81425]
[1727193293152,0.785,2622.0,2621.6,3.81444]
[1727193293310,5.440145,2622.0,2621.5,3.8146]
[1727193293640,8.41292,2622.0,2621.5,3.8146]
[1727193293959,4.59903,2621.9,2621.5,3.8146]
[1727193294452,0.785,2621.6,2621.3,3.81486]
[1727193294625,0.785,2621.6,2621.3,7.62969]
[1727193295011,0.785,2621.6,2621.4,3.81475]
[1727193298160,0.785,2621.6,2621.3,3.81483]
[1727193298526,0.785,2621.6,2621.1,3.81508]
[1727193298871,0.785,2621.6,2621.2,3.81503]
[1727193299067,4.59946,2621.6,2621.1,7.63017]
[1727193299237,4.59946,2621.6,2621.2,3.81503]
[1727193299435,0.785,2621.6,2621.3,3.81483]
[1727193300261,0.785,2622.0,2621.3,2.84984689]
[1727193300424,0.785,2622.0,2621.6,3.81439]
[1727193300621,0.785,2622.0,2621.7,3.81422]
[1727193300946,0.785,2622.0,2621.8,3.81415]
[1727193301138,0.785,2622.3,2621.9,3.81398]
[1727193301358,0.785,2622.3,2622.1,3.81359]
[1727193301672,3.81283,2622.8,2622.0,3.81378]
[1727193301673,3.81308,2622.6,2622.0,3.81378]
[1727193301871,7.3066464,2622.9,2621.9,3.81391]
[1727193301872,0.8221,2622.5,2621.9,3.81391]
[1727193302077,0.8221,2622.5,2622.0,3.81378]
[1727193302371,4.6353,2622.5,2622.0,3.81378]
[1727193302579,0.09534103,2622.4,2621.8,3.81415]
[1727193302782,0.8221,2622.1,2621.6,3.81435]
[1727193302979,0.8221,2622.1,2621.7,3.81431]
[1727193303776,0.8221,2622.1,2621.8,3.81413]
[1727193303990,0.8221,2622.1,2621.9,3.81402]
[1727193304163,0.8221,2622.5,2622.0,4.39228001]
[1727193304805,0.8221,2622.5,2622.0,0.57840001]
[1727193305078,4.63534,2622.5,2622.0,0.57840001]
[1727193305234,4.63534,2622.5,2622.0,3.81387]
[1727193307385,0.8221,2622.5,2622.1,3.81372]
[1727193307590,0.8221,2622.5,2622.3,3.81343]
[1727193307755,0.8221,2622.5,2622.1,3.81363]
[1727193308178,0.8221,2622.5,2622.1,7.62729]
[1727193308351,0.8221,2622.5,2622.2,3.81357]
[1727193308704,0.8221,2622.5,2622.3,3.81344]
[1727193308856,0.8221,2622.8,2622.3,3.81344]
[1727193309354,0.8221,2622.8,2622.2,3.64874689]
[1727193309355,0.8221,2622.8,2622.4,0.07626298]
[1727193309589,0.0166464,2622.9,2622.6,3.8129]
[1727193309773,0.0166464,2622.9,2622.7,3.81285]
[1727193310364,0.0166464,2622.9,2622.6,3.8129]
[1727193310591,0.0166464,2622.9,2622.7,3.81282]
[1727193311696,0.0166464,2622.9,2622.7,3.81278]
[1727193312495,0.0166464,2622.9,2622.5,3.81305]
[1727193312700,0.0166464,2622.9,2622.6,3.813]
[1727193313062,0.0166464,2622.9,2622.5,3.81305]
[1727193313484,0.0166464,2622.9,2622.6,3.81297]
[1727193314984,0.0166464,2622.9,2622.6,7.62589]
[1727193315299,0.0166464,2622.9,2622.6,3.81292]
[1727193315906,0.0166464,2622.9,2622.6,7.62586]
[1727193316103,0.0166464,2622.9,2622.6,3.81292]
[1727193316710,0.0166464,2622.9,2622.8,6.66255689]
[1727193316907,0.0166464,2622.9,2622.8,7.48925689]
[1727193317119,0.0166464,2622.9,2622.8,4.63941]
[1727193318270,0.0166464,2622.9,2622.8,3.81271]
[1727193318470,0.0166464,2622.9,2622.6,3.81289]
[1727193318785,0.0166464,2622.9,2622.2,3.81348]
[1727193318995,0.0166464,2622.9,2622.4,3.8132]
[1727193318996,0.8187,2622.8,2622.4,3.8132]
[1727193319480,0.8187,2622.8,2622.4,7.62641]
[1727193319681,0.8187,2622.8,2622.6,3.813]
[1727193320185,0.8187,2622.8,2622.4,3.8132]
[1727193320381,0.8187,2622.8,2622.5,3.81312]
[1727193321213,0.8187,2622.8,2622.6,3.81292]
[1727193321418,0.8187,2622.8,2622.7,3.81286]
[1727193321635,0.8187,2622.8,2622.6,3.81292]
[1727193322294,0.8187,2622.8,2622.7,3.81286]
[1727193322631,0.8187,2622.8,2622.6,7.62584]
[1727193322838,0.0166464,2622.9,2622.7,3.81286]
[1727193323542,0.0166464,2622.9,2622.6,3.81292]
[1727193324442,0.0166464,2622.9,2622.6,3.81293]
[1727193324740,0.0166464,2622.9,2622.6,3.81289]
[1727193325418,0.8187,2622.8,2622.5,3.81308]
[1727193325627,0.8187,2622.8,2622.4,3.81322]
[1727193325628,0.8187,2622.8,2622.4,3.81321]
[1727193326296,0.8187,2622.8,2622.5,3.81314]
[1727193326742,0.8187,2622.8,2622.4,3.81326]
[1727193326942,0.8187,2622.6,2622.2,3.8135]
[1727193327250,0.8187,2622.6,2622.3,3.81342]
[1727193328039,0.8187,2622.6,2622.2,3.81358]
[1727193328246,0.8187,2622.6,2622.0,4.39225001]
[1727193328408,0.8187,2622.6,2622.4,3.81326]
[1727193329043,0.8187,2622.6,2622.3,3.81342]
[1727193329466,0.8353464,2622.9,2622.4,3.81328]
[1727193329669,0.8353464,2622.9,2622.6,3.81291]
[1727193330057,0.8353464,2622.9,2622.5,3.81308]
[1727193331773,0.8353464,2622.9,2622.7,3.81286]
[1727193331959,0.8353464,2622.9,2622.5,3.81308]
[1727193332276,0.8353464,2622.9,2622.5,7.62615]
[1727193332572,0.8353464,2622.9,2622.7,7.62557]
[1727193332945,0.8353464,2622.9,2622.8,3.81271]
[1727193333464,0.8353464,2622.9,2622.7,3.81278]
[1727193334236,0.8353464,2622.9,2622.6,3.813]
[1727193334531,0.8353464,2622.9,2622.7,3.81283]
[1727193335267,0.8353464,2622.9,2622.5,3.81306]
[1727193337286,0.8353464,2622.9,2622.3,3.81332]
[1727193337459,0.8353464,2622.9,2622.4,3.81319]
[1727193337460,1.30013404,2622.9,2622.4,3.81319]
[1727193337659,5.11277404,2622.9,2622.3,3.81332]
[1727193337873,4.59579,2622.8,2622.3,7.62668]
[1727193338099,0.783,2622.8,2622.3,3.81332]
[1727193338250,0.783,2622.8,2622.1,0.78]
[1727193338251,0.783,2622.8,2622.5,3.81314]
[1727193338860,0.783,2622.8,2622.4,7.62637]
[1727193339058,0.783,2622.8,2622.4,3.81316]
[1727193339290,0.783,2622.8,2622.4,7.62636]
[1727193339491,0.783,2622.8,2622.4,3.81316]
[1727193339891,4.27395464,2622.8,2622.2,3.81356]
[1727193340048,0.783,2622.7,2622.1,3.81364]
[1727193340253,4.596,2622.7,2622.2,3.81351]
[1727193340584,0.783,2622.7,2622.3,3.81337]
[1727193340889,0.783,2622.7,2622.2,3.81351]
[1727193341188,3.8292864,2622.9,2622.4,8.4065]
[1727193341348,3.81275,2622.8,2622.3,3.81342]
[1727193341549,3.8292864,2622.9,2622.5,3.81309]
[1727193341550,4.67176404,2622.9,2622.5,3.81309]
[1727193341788,3.8292864,2622.9,2622.5,3.81309]
[1727193342176,0.0166464,2622.9,2622.5,7.62618]
[1727193342377,0.0166464,2622.9,2622.5,3.81309]
[1727193342590,0.0166464,2622.9,2622.5,3.81305]
[1727193344913,3.81272,2622.8,2622.3,3.81333]
[1727193345098,0.0166464,2622.9,2622.1,3.81362]
[1727193345099,0.783,2622.7,2622.1,3.81362]
[1727193345304,4.59597,2622.7,2622.3,3.81342]
[1727193346834,0.783,2622.7,2622.3,3.81335]
[1727193347026,0.783,2622.7,2622.4,3.81323]
[1727193347890,0.783,2622.7,2622.5,3.8131]
[1727193348107,0.783,2622.7,2622.4,3.81323]
[1727193348332,0.783,2622.7,2622.4,7.62642]
[1727193348708,0.783,2622.7,2622.4,3.81321]
[1727193350334,0.783,2622.7,2622.4,7.62643]
[1727193350631,0.783,2622.7,2622.5,3.81313]
[1727193351391,0.783,2622.7,2622.1,0.7936]
[1727193351592,3.81338,2622.4,2621.9,11.18396]
[1727193351803,0.7638,2622.3,2621.9,3.81396]
[1727193352433,0.7638,2622.3,2622.1,3.81367]
[1727193353197,0.7638,2622.3,2622.1,7.62733]
[1727193353438,3.81302,2622.6,2622.1,7.62733]
[1727193353439,0.7638,2622.6,2622.2,3.81359]
[1727193353620,0.7638,2622.6,2622.1,3.81366]
[1727193353805,4.57689,2622.6,2622.1,3.81363]
[1727193354012,0.7638,2622.6,2622.2,3.81354]
[1727193354242,0.7638,2622.6,2622.3,3.81341]
[1727193354796,4.57652,2622.8,2622.4,3.81328]
[1727193354998,0.0166464,2622.9,2622.5,3.81308]
[1727193354999,0.7804464,2622.9,2622.5,3.81308]
[1727193355544,4.5930164,2622.9,2622.5,3.81308]
[1727193355730,0.7804464,2622.9,2622.5,3.81308]
[1727193356243,4.5930264,2622.9,2622.5,3.81308]
[1727193357018,0.0166464,2622.9,2622.5,3.81308]
[1727193357218,4.5930364,2622.9,2622.4,3.81321]
[1727193357415,0.7804464,2622.9,2622.5,3.81313]
[1727193358150,0.7804464,2622.9,2622.4,3.81321]
[1727193358361,0.7804464,2622.9,2622.5,3.8131]
[1727193359155,0.7804464,2622.9,2622.4,3.81321]
[1727193359156,4.5931364,2622.9,2622.4,3.81321]
[1727193360067,4.5931364,2622.9,2622.4,7.62642]
[1727193360233,4.5931364,2622.9,2622.4,7.62643]
[1727193360435,4.5931364,2622.9,2622.4,3.81321]
[1727193360629,3.81298,2622.7,2622.2,3.8135]
[1727193360968,0.7638,2622.5,2622.2,3.8135]
[1727193362131,0.7638,2622.5,2622.2,7.62701]
[1727193362334,0.7638,2622.5,2622.2,3.8135]
[1727193362534,0.7638,2622.5,2622.1,3.81372]
[1727193362865,4.57701,2622.5,2622.1,3.81372]
[1727193363367,0.7638,2622.5,2622.1,3.81372]
[1727193363672,4.57698,2622.5,2622.1,3.81372]
[1727193363868,0.7638,2622.5,2622.3,3.81343]
[1727193364042,0.7689,2622.7,2622.3,3.81335]
[1727193364368,4.58178,2622.7,2622.3,3.81335]
[1727193365279,0.7689,2622.7,2622.3,3.81335]
[1727193365839,0.7689,2622.7,2622.4,3.81321]
[1727193366867,4.5981864,2622.9,2622.4,3.81321]
[1727193367245,4.5981864,2622.9,2622.3,3.81335]
[1727193367550,0.7855464,2622.9,2622.6,3.81298]
[1727193368063,0.7855464,2622.9,2622.6,7.6259]
[1727193368371,0.7855464,2622.9,2622.6,3.81292]
[1727193368876,0.7855464,2622.9,2622.5,3.81313]
[1727193369089,0.7855464,2622.9,2622.4,3.81323]
[1727193369090,5.43916404,2622.9,2622.4,3.81319]
[1727193369233,3.81274,2622.8,2622.3,3.81342]
[1727193369439,3.81274,2622.8,2622.2,3.81358]
[1727193369781,0.7689,2622.7,2622.2,3.81358]
[1727193370004,0.7689,2622.5,2621.8,5.39495912]
[1727193370285,3.81331,2622.4,2621.9,6.1551644]
[1727193370494,3.81331,2622.4,2621.9,3.81394]
[1727193370832,3.81331,2622.4,2622.0,3.81384]
[1727193371443,3.81331,2622.4,2621.9,3.81394]
[1727193371644,7.62674,2622.4,2621.9,3.81394]
[1727193371867,7.62674,2622.4,2621.5,7.86593558]
[1727193371868,3.81368,2622.2,2621.6,0.80099912]
[1727193372076,7.62738,2622.2,2621.7,3.81431]
[1727193372266,3.81374,2622.1,2621.7,3.81431]
[1727193372691,3.81368,2622.2,2621.7,7.62862]
[1727193372893,3.81368,2622.2,2621.3,1.58089912]
[1727193372894,3.81374,2622.1,2621.6,3.81439]